Cogmind - Beta 14 @@@ ROGUE MODE // 2024.11.09 @ 10:35:52 Player: Tereza Result: Destroyed by Y-64 Sentinel with KE Penetrator Performance ------------- Evolutions (5) 2500 Regions Visited (13) 2600 Robots Destroyed (122) 610 Value Destroyed (5034) 5034 Prototype IDs (2) 40 Alien Tech Used (0) 0 Bonus (604) 604 TOTAL SCORE: 11388 Bonus ------- High Alert Combat Kills 97 Follower Combat Kills 126 Entered Garrisons 200 Acquired ECA 300 Friendly Fire -119 Cogmind --------- Core Integrity 0/1000 Matter 210/300 Energy 27/100 System Corruption 0% Temperature Cool (0) Movement Core (50) Location -5/Upper Caves Parts ------- > --- POWER (1) -------- (None) > --- PROPULSION (4) --- (None) > --- UTILITY (9) ------ (None) > --- WEAPON (3) ------- (None) > --- INVENTORY (5) ---- Triangulator Arc Thrower Gatling Laser Dirty Datajack (20) Dirty Datajack (20) Peak State ------------ > --- POWER ------------ Angular Momentum Engine > --- PROPULSION ------- Carbon-fiber Leg Flexi-carbon Leg Flexi-carbon Leg > --- UTILITY ---------- High-capacity Storage Unit Experimental Sensor Array Improved Signal Interpreter Encrypted Comm Array Improved Targeting Computer Core Analyzer Improved Reaction Control System Improved System Shield > --- WEAPON ----------- Makeshift Shrapnel Gun Makeshift Shrapnel Gun Heavy Shock Bomb Launcher > --- INVENTORY -------- Micro Fission Core Advanced Heat Sink Advanced Heat Sink Advanced Heat Sink Huge Storage Unit Improved Trap Scanner Triangulator Advanced Signal Interpreter Advanced Terrain Scanner Improved Targeting Computer Energy Filter Transmission Jammer Improved Transmission Jammer Arc Thrower Gatling Laser Slug Cannon Improved Proton Missile Launcher Rocket Launcher Missile Launcher Mining Laser [Rating: 74] Favorites ----------- Power Ion Engine Engine Ion Engine Power Core Light Nuclear Core Propulsion Light Treads Treads Light Treads Leg Flexi-carbon Leg Wheel Wheel Utility High-capacity Storage Unit Device Improved Heat Sink Storage High-capacity Storage Unit Processor Improved Signal Interpreter Hackware Improved System Shield Protection Light Armor Plating Weapon Improved Assault Rifle Energy Gun Arc Projector Ballistic Gun Improved Assault Rifle Ballistic Cannon Mass Driver Launcher Rocket Launcher Special Weapon Mining Laser Special Melee Weapon Dirty Datajack Build | -11 -10 -10 -10 -9 -8 -8 -8 -8 -8 -6 -5 -5 -5 ------- Run | Yrd Mat Min Exi Min Mat Sto Gar Rec Scr Fac Fac Upp Upp Slots Evolved 10 | . . . . . 4 . . . . 4 2 . . Power . | . . . . . . . . . . . . . . Propulsion 2 | . . . . . 1 . . . . 1 . . . Utility 7 | . . . . . 3 . . . . 2 2 . . Weapon 1 | . . . . . . . . . . 1 . . . Parts Attached 123 | 6 6 . . 3 4 19 21 8 2 34 5 1 14 Power 12 | 1 . . . . 1 2 2 1 . 3 . . 2 Engine 6 | 1 . . . . . 1 1 1 . 2 . . . Core 6 | . . . . . 1 1 1 . . 1 . . 2 Reactor . | . . . . . . . . . . . . . . Propulsion 23 | 2 1 . . . 2 5 4 2 . 6 1 . . Treads 17 | 2 . . . . 2 5 4 2 . 2 . . . Leg 3 | . . . . . . . . . . 2 1 . . Wheel 3 | . 1 . . . . . . . . 2 . . . Hover . | . . . . . . . . . . . . . . Flight . | . . . . . . . . . . . . . . Utility 42 | 1 2 . . 1 1 9 8 3 . 12 3 1 1 Device 20 | . . . . 1 1 4 6 . . 5 1 1 1 Storage 4 | 1 2 . . . . . . . . 1 . . . Processor 8 | . . . . . . 1 2 1 . 2 2 . . Hackware 1 | . . . . . . . . . . 1 . . . Protection 9 | . . . . . . 4 . 2 . 3 . . . Artifact . | . . . . . . . . . . . . . . Weapon 46 | 2 3 . . 2 . 3 7 2 2 13 1 . 11 Energy Gun 13 | 2 1 . . . . 1 3 1 . 4 1 . . Energy Cannon . | . . . . . . . . . . . . . . Ballistic Gun 12 | . 2 . . 1 . 1 . . 1 5 . . 2 Ballistic Cannon 10 | . . . . 1 . 1 2 1 1 3 . . 1 Launcher 8 | . . . . . . . 1 . . 1 . . 6 Special Weapon 1 | . . . . . . . 1 . . . . . . Impact Weapon . | . . . . . . . . . . . . . . Slashing Weapon . | . . . . . . . . . . . . . . Piercing Weapon . | . . . . . . . . . . . . . . Special Melee Weapon 2 | . . . . . . . . . . . . . 2 Unidentified Prototypes 2 | . 1 . . . . . . . . . 1 . . Parts Lost 79 | . 1 . . . 1 9 18 4 . 25 4 2 15 Power 9 | . . . . . . 1 2 1 . 3 . . 2 Propulsion 19 | . . . . . 1 3 5 . . 5 2 . 3 Utility 24 | . . . . . . 2 7 2 . 8 1 1 3 Weapon 27 | . 1 . . . . 3 4 1 . 9 1 1 7 Highest Loss Streak 14 | . 1 . . . 1 2 9 2 . 14 4 2 6 To Critical Strikes . | . . . . . . . . . . . . . . Average Slot Usage (%) 85 | . 94 100 93 99 79 97 95 90 95 73 69 81 57 Engine 7 | . 14 14 14 14 6 3 3 7 9 5 5 5 1 Core 1 | . . . . . 2 4 4 . . . . . . Treads 14 | . 15 14 14 14 20 26 24 25 27 9 2 . . Leg 2 | . . . . . . . . . . . 13 17 8 Wheel 3 | . 12 14 14 14 5 . . . . 3 2 . . Device 6 | . . . . 13 17 22 11 . . 6 4 10 5 Storage 10 | . 22 28 21 14 9 9 9 9 9 6 5 5 4 Processor 13 | . . . . . . . 19 23 27 15 14 22 16 Hackware 1 | . . . . . . . . . . 3 5 5 4 Protection 2 | . . . . . . 11 2 6 9 3 . . . Energy Gun 3 | . 16 . . . . 3 4 3 . 2 8 10 1 Ballistic Gun 8 | . 11 28 28 20 9 9 2 . 7 5 2 . 3 Ballistic Cannon 5 | . . . . 7 9 5 10 13 7 6 . . 2 Peak Build Rating 74 | 6 11 12 12 13 22 31 48 36 33 51 60 65 74 Average Rating 32 | 3 8 11 11 12 19 28 38 33 31 39 53 64 46 On Entrance 26 | . 6 11 12 11 12 22 31 35 25 33 50 60 59 Naked Turns 4 | . . . . . . . . . . . . . 4 Heaviest Build 77 | 14 52 52 52 52 53 66 64 66 60 77 62 62 64 Greatest Support 88 | 40 40 10 10 10 71 76 78 68 68 88 55 55 55 Greatest Overweight (x) 24 | . 5 5 5 5 5 1 2 1 . 24 6 1 20 Average Overweight (x) 2 | . 4 5 4 4 . . . . . 4 3 1 2 Largest Inventory Capacity 20 | 8 20 20 20 20 20 20 20 20 20 20 20 20 20 Average Capacity 19 | 6 18 20 20 20 20 20 20 20 20 20 20 20 19 Most Carried 20 | 6 20 20 20 20 20 20 20 20 20 20 20 20 20 Average Carried 18 | 4 16 19 20 19 19 19 19 19 19 15 19 20 19 Final Capacity 20 | 8 20 20 20 20 20 20 20 20 20 20 20 20 5 Final Carried 20 | 6 20 20 20 20 20 20 18 20 20 18 20 20 5 Class Distribution -------------------- 65% | Mutant 13% | Commander-Mutant 10% | Scavenger-Mutant 5% | Skirmisher Dominant Class ---------------- Mutant | -10/Materials Mutant | -10/Mines Mutant | -10/Exiles Mutant | -9/Mines Mutant | -8/Materials Scavenger-Mutant | -8/Storage Mutant | -8/Garrison Commander-Mutant | -8/Recycling Commander-Mutant | -8/Scraptown Skirmisher | -6/Factory Mutant | -5/Factory Mutant | -5/Upper Caves Mutant | -5/Upper Caves Resources | -11 -10 -10 -10 -9 -8 -8 -8 -8 -8 -6 -5 -5 -5 ----------- Run | Yrd Mat Min Exi Min Mat Sto Gar Rec Scr Fac Fac Upp Upp Matter Collected 3634 | 231 229 39 44 95 99 511 859 308 30 667 124 70 328 Remotely . | . . . . . . . . . . . . . . Salvage Created 5054 | . 693 . . 140 164 1054 758 526 . 876 124 70 649 Parts 194 | . 30 . . 7 7 45 33 17 . 28 4 1 22 Haulers Intercepted 3 | . 2 . . . . 1 . . . . . . . Recyclers Shooed 8 | . 1 . . . . 3 . 2 . 1 1 . . Parts Field Recycled . | . . . . . . . . . . . . . . Retrieved Matter . | . . . . . . . . . . . . . . Parts Self-Destructed 13 | . . . . . . . . . . . . . 13 Prevented 7 | . . . . . . . . . . . . . 7 Kills | -11 -10 -10 -10 -9 -8 -8 -8 -8 -8 -6 -5 -5 -5 ------- Run | Yrd Mat Min Exi Min Mat Sto Gar Rec Scr Fac Fac Upp Upp Combat Hostiles Destroyed 105 | . 10 . . 3 4 21 24 7 . 19 2 1 14 Guns 51 | . 7 . . 3 1 14 9 . . 10 2 1 4 Cannons 38 | . . . . . 3 7 15 7 . 6 . . . AOE 14 | . 3 . . . . . . . . 2 . . 9 Classes Destroyed 13 | . 5 . . . . 1 1 3 . 3 . . . Worker 3 | . . . . . . . . . . 3 . . . Hauler 3 | . 2 . . . . 1 . . . . . . . Recycler 6 | . 2 . . . . 1 . 3 . . . . . Watcher 4 | . 3 . . . . 1 . . . . . . . Swarmer 16 | . 3 . . . . . 3 . . 4 . . 6 Grunt 60 | . 7 . . 3 4 14 15 . . 9 2 1 5 Brawler 2 | . . . . . . . . . . 1 . . 1 Duelist 2 | . . . . . . . . 1 . . . . 1 Sentry 18 | . . . . . . 7 5 4 . 1 . . 1 Demolisher 1 | . . . . . . . . . . 1 . . . Hunter 3 | . . . . . . . . 1 . 2 . . . Programmer 3 | . . . . . . . . 1 . 2 . . . Behemoth 1 | . . . . . . . 1 . . . . . . Best Kill Streak 6 | . 4 . . 3 3 5 4 3 . 6 1 1 5 Combat Bots Only 6 | . 3 . . 3 3 4 4 2 . 6 1 1 5 Max Kills in Single Turn 2 | . 1 . . 1 1 1 1 1 . 2 1 1 2 Gunslinging . | . . . . . . . . . . . . . . Exploded 2 | . 1 . . . . . . . . 1 . . 2 Melee . | . . . . . . . . . . . . . . Uniques/NPCs Destroyed . | . . . . . . . . . . . . . . Combat | -11 -10 -10 -10 -9 -8 -8 -8 -8 -8 -6 -5 -5 -5 -------- Run | Yrd Mat Min Exi Min Mat Sto Gar Rec Scr Fac Fac Upp Upp Hostile Shots Fired 844 | . 37 . . 11 23 114 171 45 . 260 18 17 148 Missed 204 | . 11 . . 2 7 30 39 10 . 57 7 4 37 Damage Taken 10848 | . 399 . . 127 248 1208 2195 545 . 3537 214 254 2121 Core 2415 | . 84 . . . 22 115 344 16 . 832 . 59 943 Absorbed by Shields 180 | . . . . . . 84 96 . . . . . . Redirected to Shielding 57 | . . . . . . . . . . 57 . . . Core Remaining (%) 44 | 100 . . . 66 . . . . 9 2 . . . Volleys Fired 389 | . 52 . . 8 14 77 92 26 . 77 12 4 27 Largest 3 | . 2 . . 2 2 2 2 2 . 3 2 2 3 Hottest 195 | . 80 . . 46 62 92 122 122 . 195 135 135 94 Shots Fired 741 | . 103 . . 16 28 152 151 51 . 163 24 8 45 Gun 462 | . 103 . . 16 14 110 61 21 . 86 24 8 19 Cannon 249 | . . . . . 14 42 78 30 . 74 . . 11 Launcher 23 | . . . . . . . 5 . . 3 . . 15 Special 7 | . . . . . . . 7 . . . . . . Kinetic 476 | . 29 . . 16 28 118 103 30 . 119 3 . 30 Thermal 125 | . 33 . . . . 34 7 . . 35 12 4 . Explosive 9 | . . . . . . . 5 . . . . . 4 Electromagnetic 131 | . 41 . . . . . 36 21 . 9 9 4 11 Robot Hit Streak 18 | . 11 . . 8 13 18 14 18 . 12 8 9 6 Robot Miss Streak 11 | . 2 . . 1 1 5 6 2 . 11 4 1 4 Penetration Max . | . . . . . . . . . . . . . . Secondary Targets 2 | . . . . . . 2 . . . . . . . Max Gunslinging Chain 1 | . . . . . . 1 . . . . . . . Shots Hit Robots 512 | . 65 . . 12 20 115 92 41 . 111 17 8 31 Core Hits 279 | . 28 . . 6 8 63 57 15 . 55 10 5 32 Critical Kills 2 | . . . . . . . 2 . . . . . . Critical Parts Destroyed 2 | . 1 . . . . . . . . 1 . . . Critical Strikes 26 | . 2 . . . . 4 5 2 . 13 . . . Burn 6 | . . . . . . 3 . . . 3 . . . Destroy 4 | . 1 . . . . . 2 . . 1 . . . Blast 15 | . . . . . . 1 3 2 . 9 . . . Corrupt 1 | . 1 . . . . . . . . . . . . Melee Attacks 1 | . . . . . . . . . . . . . 1 Impact . | . . . . . . . . . . . . . . Slashing . | . . . . . . . . . . . . . . Piercing 1 | . . . . . . . . . . . . . 1 Sneak Attacks . | . . . . . . . . . . . . . . Combat Hostiles . | . . . . . . . . . . . . . . Follow-up Attacks . | . . . . . . . . . . . . . . Damage Inflicted 12406 | . 995 . . 177 343 2172 2463 1073 . 2940 285 160 1798 Guns 5060 | . 802 . . 177 152 1344 472 187 . 1107 285 160 374 Cannons 4783 | . . . . . 191 828 1448 886 . 1335 . . 95 Explosions 2562 | . 193 . . . . . 543 . . 498 . . 1328 Melee 1 | . . . . . . . . . . . . . 1 Ramming . | . . . . . . . . . . . . . . Kinetic 7193 | . 242 . . 177 343 1577 1588 886 . 1877 34 . 469 Thermal 2117 | . 379 . . . . 595 147 . . 599 197 110 90 Explosive 1022 | . . . . . . . 396 . . 196 . . 430 Electromagnetic 2073 | . 374 . . . . . 332 187 . 268 54 50 808 Impact . | . . . . . . . . . . . . . . Slashing . | . . . . . . . . . . . . . . Piercing 1 | . . . . . . . . . . . . . 1 Highest Corruption 6 | . 1 1 1 1 . . . 1 . 6 . . . Average Corruption 2 | . 1 1 1 1 . . . 1 . 4 . . . Corruption Purged 8 | . . . . . . . . . . 8 . . . Corruption Blocked . | . . . . . . . . . . . . . . Effects 57 | . 6 4 3 7 . . . 5 . 32 . . . Message Errors 14 | . 2 1 2 1 . . . 2 . 6 . . . Matter Fused 10 | . 1 1 1 2 . . . . . 5 . . . Heat Flow Errors 5 | . 1 . . 1 . . . 1 . 2 . . . Energy Discharges 7 | . 1 1 . . . . . 1 . 4 . . . Parts Fused 1 | . . . . . . . . . . 1 . . . Data Loss (minor) 11 | . . . . 3 . . . 1 . 7 . . . Data Loss (major) 1 | . . 1 . . . . . . . . . . . Misfires 3 | . . . . . . . . . . 3 . . . Alerts 1 | . . . . . . . . . . 1 . . . Weapon Failures 4 | . 1 . . . . . . . . 3 . . . Overload Shots . | . . . . . . . . . . . . . . Overflow Damage 121 | . . . . . . . 12 36 . 50 . . 23 Projectiles 61 | . . . . . . . 10 36 . 15 . . . Explosions 60 | . . . . . . . 2 . . 35 . . 23 Melee . | . . . . . . . . . . . . . . Knockbacks 69 | . . . . . . 17 31 2 . 16 . . 3 Impact . | . . . . . . . . . . . . . . Kinetic 64 | . . . . . . 16 29 2 . 14 . . 3 Secondary 5 | . . . . . . 1 2 . . 2 . . . Self-Inflicted Damage 432 | . 89 . . . . . 88 . . 59 . . 196 Shots 19 | . 3 . . . . . 5 . . 3 . . 8 Rammed . | . . . . . . . . . . . . . . Targets Rammed . | . . . . . . . . . . . . . . Kicked . | . . . . . . . . . . . . . . Crushed . | . . . . . . . . . . . . . . Highest Temperature 431 | . 258 . . 83 13 20 306 331 . 431 133 201 28 Average Temperature 99 | . 65 . . 53 12 4 102 130 . 129 53 109 13 Received Heat Transfer 3360 | . 126 . . 72 171 638 850 144 . 900 99 111 249 Effects 7 | . . . . . . . . 3 . 4 . . . Shutdowns 3 | . . . . . . . . . . 3 . . . Energy Bleed 3 | . . . . . . . . 3 . . . . . Interference 1 | . . . . . . . . . . 1 . . . Siege Activations . | . . . . . . . . . . . . . . Robots Corrupted 2 | . 1 . . . . . . . . . . . 1 Combat Hostiles 1 | . . . . . . . . . . . . . 1 Parts Fried 4 | . 2 . . . . . . . . . . . 2 Impact Corruptions . | . . . . . . . . . . . . . . Robots Melted 1 | . . . . . . . . . . 1 . . . Combat Hostiles 1 | . . . . . . . . . . 1 . . . Parts Melted 9 | . . . . . . 2 . . . 5 . 1 1 Heat Transferred 4744 | . 625 . . . . 1369 150 . . 1800 450 250 100 Parts Sabotaged 3 | . . . . . . . . . . . . . 3 Parts Stolen . | . . . . . . . . . . . . . . Parts Stripped . | . . . . . . . . . . . . . . Power Chain Reactions 10 | . 4 . . . . . 2 . . 1 . . 3 Alert | -11 -10 -10 -10 -9 -8 -8 -8 -8 -8 -6 -5 -5 -5 ------- Run | Yrd Mat Min Exi Min Mat Sto Gar Rec Scr Fac Fac Upp Upp Peak Influence 718 | . 199 . . 70 106 350 718 462 . 218 81 . . Initial 322 | . . . . . . 44 86 322 . . 81 . . Average 160 | . 75 . . 29 23 198 358 295 . 104 60 . . Maximum Alert Level 3 | . . . . . . 1 3 2 . 1 . . . Low Security (%) 64 | 100 100 100 . 100 100 41 15 23 . 81 100 . . Level 1 25 | . . . . . . 58 45 60 . 18 . . . Level 2 9 | . . . . . . . 38 15 . . . . . Level 3 . | . . . . . . . 1 . . . . . . Level 4 . | . . . . . . . . . . . . . . Level 5 . | . . . . . . . . . . . . . . High Security . | . . . . . . . . . . . . . . Max Security . | . . . . . . . . . . . . . . Squads Dispatched 9 | . 1 . . . . 3 . . . 4 . . 1 Investigation 2 | . . . . . . 1 . . . 1 . . . Extermination 2 | . . . . . . . . . . 2 . . . Reinforcement 3 | . 1 . . . . 1 . . . 1 . . . Assault 1 | . . . . . . . . . . . . . 1 Garrison 1 | . . . . . . 1 . . . . . . . Intercept . | . . . . . . . . . . . . . . Searches Triggered . | . . . . . . . . . . . . . . Construction Impeded . | . . . . . . . . . . . . . . Haulers Reinforced 1 | . . . . . . . . . . 1 . . . Active Scanning Responses . | . . . . . . . . . . . . . . Cargo Convoy Interrupts . | . . . . . . . . . . . . . . Stealth | -11 -10 -10 -10 -9 -8 -8 -8 -8 -8 -6 -5 -5 -5 --------- Run | Yrd Mat Min Exi Min Mat Sto Gar Rec Scr Fac Fac Upp Upp Distress Signals 5 | . 1 . . . 1 2 1 . . . . . . Communications Jammed . | . . . . . . . . . . . . . . Distress Signals . | . . . . . . . . . . . . . . Times Spotted 154 | . 20 . . 3 9 28 28 7 . 25 2 6 26 Peak Tracking Total 8 | . 5 . . 3 8 4 6 2 . 8 2 3 8 Tactical Retreats 10 | . . . . . . 1 2 . . 4 . 1 2 Traps | -11 -10 -10 -10 -9 -8 -8 -8 -8 -8 -6 -5 -5 -5 ------- Run | Yrd Mat Min Exi Min Mat Sto Gar Rec Scr Fac Fac Upp Upp Traps Triggered 5 | . 1 . . . . . 3 . . . 1 . . Indirectly . | . . . . . . . . . . . . . . Trap Hack Attempts . | . . . . . . . . . . . . . . Triggered . | . . . . . . . . . . . . . . Disarmed . | . . . . . . . . . . . . . . Reprogrammed . | . . . . . . . . . . . . . . Reused . | . . . . . . . . . . . . . . Traps Extracted . | . . . . . . . . . . . . . . Installed . | . . . . . . . . . . . . . . Triggered . | . . . . . . . . . . . . . . Machines | -11 -10 -10 -10 -9 -8 -8 -8 -8 -8 -6 -5 -5 -5 ---------- Run | Yrd Mat Min Exi Min Mat Sto Gar Rec Scr Fac Fac Upp Upp Machines Disabled 9 | . 1 . . . . 1 2 . . 4 . . 1 Max in Single Turn 2 | . 1 . . . . 1 1 . . 2 . . 1 Garrison Access 1 | . . . . . . . . . . . 1 . . Garrison Relay 1 | . . . . . . . 1 . . . . . . Machines Repaired . | . . . . . . . . . . . . . . Machines Dismantled . | . . . . . . . . . . . . . . Machines Sabotaged . | . . . . . . . . . . . . . . Overloaded Fab Kills . | . . . . . . . . . . . . . . Hacking | -11 -10 -10 -10 -9 -8 -8 -8 -8 -8 -6 -5 -5 -5 --------- Run | Yrd Mat Min Exi Min Mat Sto Gar Rec Scr Fac Fac Upp Upp Machines Accessed 36 | . . . 4 . 2 8 5 8 . 4 3 . 2 Terminals 23 | . . . . . 2 7 5 3 . 4 2 . . Fabricators . | . . . . . . . . . . . . . . Repair Stations . | . . . . . . . . . . . . . . Recycling Units 5 | . . . . . . . . 5 . . . . . Scanalyzers . | . . . . . . . . . . . . . . Garrison Access 2 | . . . . . . 1 . . . . 1 . . Total Hacks 66 | . . . 4 . 7 16 9 15 . 8 5 . 2 Successful 30 | . . . 4 . 2 6 5 9 . 1 1 . 2 Failed 36 | . . . . . 5 10 4 6 . 7 4 . . Catastrophic 14 | . . . . . 2 2 . 2 . 6 2 . . Database Lockouts . | . . . . . . . . . . . . . . Manual 35 | . . . . . 2 9 . 16 . 4 4 . . Terminals 51 | . . . . . 7 13 9 10 . 8 4 . . Fabricators . | . . . . . . . . . . . . . . Repair Stations . | . . . . . . . . . . . . . . Recycling Units 5 | . . . . . . . . 5 . . . . . Scanalyzers . | . . . . . . . . . . . . . . Garrison Access 4 | . . . . . . 3 . . . . 1 . . Terminal Hacks 19 | . . . 4 . . 4 5 3 . 1 . . 2 Record 4 | . . . 4 . . . . . . . . . . Open Door 5 | . . . . . . 2 1 . . . . . 2 Emergency Access Points 1 | . . . . . . . 1 . . . . . . Recycling Unit Index 1 | . . . . . . . . 1 . . . . . Alert Level 3 | . . . . . . 1 . 1 . 1 . . . Unreport Threat 2 | . . . . . . 1 . 1 . . . . . Garrison Registry 1 | . . . . . . . 1 . . . . . . Patrol Navigation 1 | . . . . . . . 1 . . . . . . Security Stations 1 | . . . . . . . 1 . . . . . . Fabricator Hacks . | . . . . . . . . . . . . . . Repair Station Hacks . | . . . . . . . . . . . . . . Recycling Unit Hacks . | . . . . . . . . . . . . . . Scanalyzer . | . . . . . . . . . . . . . . Garrison Access Hacks 2 | . . . . . . 1 . . . . 1 . . Unlock Access 1 | . . . . . . 1 . . . . . . . Seal Access 1 | . . . . . . . . . . . 1 . . Unauthorized Hacks 9 | . . . . . 2 1 . 6 . . . . . Terminals 4 | . . . . . 2 1 . 1 . . . . . Track 1 | . . . . . 1 . . . . . . . . Botnet 3 | . . . . . 1 1 . 1 . . . . . Fabricators . | . . . . . . . . . . . . . . Repair Stations . | . . . . . . . . . . . . . . Recycling Units 5 | . . . . . . . . 5 . . . . . Tunnel 5 | . . . . . . . . 5 . . . . . Scanalyzers . | . . . . . . . . . . . . . . Garrison Access . | . . . . . . . . . . . . . . Data Cores Recovered . | . . . . . . . . . . . . . . Used . | . . . . . . . . . . . . . . Hacking Detections 21 | . . . . . 2 6 4 3 . 4 2 . . Full Trace Events 4 | . . . . . . 1 . 2 . 1 . . . Feedback Events . | . . . . . . . . . . . . . . Feedback Blocked . | . . . . . . . . . . . . . . Robot Schematics Acquired . | . . . . . . . . . . . . . . Robots Built . | . . . . . . . . . . . . . . Authchips . | . . . . . . . . . . . . . . Time . | . . . . . . . . . . . . . . Total Robot Build Rating . | . . . . . . . . . . . . . . Part Schematics Acquired . | . . . . . . . . . . . . . . Parts Built . | . . . . . . . . . . . . . . Authchips . | . . . . . . . . . . . . . . Time . | . . . . . . . . . . . . . . Total Part Build Rating . | . . . . . . . . . . . . . . Parts Repaired . | . . . . . . . . . . . . . . Time . | . . . . . . . . . . . . . . Parts Recycled . | . . . . . . . . . . . . . . Recycled Matter . | . . . . . . . . . . . . . . Retrieved Matter . | . . . . . . . . . . . . . . Retrieved Components . | . . . . . . . . . . . . . . Parts Scanalyzed . | . . . . . . . . . . . . . . Part Schematics Acquired . | . . . . . . . . . . . . . . Parts Damaged . | . . . . . . . . . . . . . . Bothacking | -11 -10 -10 -10 -9 -8 -8 -8 -8 -8 -6 -5 -5 -5 ------------ Run | Yrd Mat Min Exi Min Mat Sto Gar Rec Scr Fac Fac Upp Upp Used RIF Installer . | . . . . . . . . . . . . . . Robots Hacked . | . . . . . . . . . . . . . . Non-combat . | . . . . . . . . . . . . . . Combat . | . . . . . . . . . . . . . . Robot Hacks Applied . | . . . . . . . . . . . . . . Relay Couplers Released 5 | . . . . . . . 5 . . . . . . Machine Destruction 5 | . . . . . . . 5 . . . . . . Fabnet Peak Effective % . | . . . . . . . . . . . . . . Robots Rewired 10 | . . . . . . . 2 7 . . . . 1 Allies Hacked . | . . . . . . . . . . . . . . Hacks Repelled . | . . . . . . . . . . . . . . Allies | -11 -10 -10 -10 -9 -8 -8 -8 -8 -8 -6 -5 -5 -5 -------- Run | Yrd Mat Min Exi Min Mat Sto Gar Rec Scr Fac Fac Upp Upp Total Allies 11 | . . . . . . . 2 7 . . . . 2 Largest Group 7 | . . . . . . . 2 7 7 7 . . 1 Highest-Rated Group 113 | . . . . . . . 51 113 113 113 . . 29 Highest-Rated Ally 34 | . . . . . . . 31 34 34 34 . . 29 Total Orders . | . . . . . . . . . . . . . . Ally Attacks 23 | . . . . . . . 2 . . 6 . . 15 Total Damage 330 | . . . . . . . 40 . . 115 . . 175 Kills 4 | . . . . . . . . . . 1 . . 3 Allies Corrupted . | . . . . . . . . . . . . . . Allies Melted . | . . . . . . . . . . . . . . Intel | -11 -10 -10 -10 -9 -8 -8 -8 -8 -8 -6 -5 -5 -5 ------- Run | Yrd Mat Min Exi Min Mat Sto Gar Rec Scr Fac Fac Upp Upp Robot Analysis Total . | . . . . . . . . . . . . . . Derelict Logs Recovered 4 | . . 1 . 1 . . . . . . . 2 . Drone Launches . | . . . . . . . . . . . . . . Drone Recoveries . | . . . . . . . . . . . . . . Exploration | -11 -10 -10 -10 -9 -8 -8 -8 -8 -8 -6 -5 -5 -5 ------------- Run | Yrd Mat Min Exi Min Mat Sto Gar Rec Scr Fac Fac Upp Upp Turns Passed 13309 | 71 932 746 651 853 318 883 1696 1166 1124 1942 524 753 1650 Spaces Moved 6027 | 39 422 273 439 357 125 349 805 537 693 855 262 274 597 Core 72 | 5 . . . . . . . . . 13 . . 54 Treads 2886 | 34 37 . . . 116 349 805 537 693 315 . . . Legs 939 | . . . . . . . . . . 2 120 274 543 Wheels 2130 | . 385 273 439 357 9 . . . . 525 142 . . Hover . | . . . . . . . . . . . . . . Flight . | . . . . . . . . . . . . . . Fastest Speed 50 | 50 140 155 140 140 155 160 155 160 160 155 170 190 50 Average Speed 177 | 145 149 155 148 154 208 165 168 169 160 188 179 190 258 Slowest Speed 1250 | 160 160 155 155 155 240 240 320 240 160 1250 190 190 1050 Overloaded Moves . | . . . . . . . . . . . . . . Propulsion Burnouts . | . . . . . . . . . . . . . . Robots Hopped . | . . . . . . . . . . . . . . Cave-ins Triggered . | . . . . . . . . . . . . . . Exploration Rate (%) 51 | 4 66 66 90 80 15 48 70 90 54 20 6 45 66 Regions Visited 13 Branch Regions 8 Pre-discovered Areas 7 | . . . . . . 1 . 5 . . . 1 . Known Exits Taken 7 | . . . . . 1 1 . 1 1 1 1 1 . Unknown Exits Taken 5 | 1 1 1 1 1 . . . . . . . . . Scrap Searched 6 | . . 1 . 2 . . . . 3 . . . . Spaces Dug 1 | . . . . . 1 . . . . . . . . Terrain Destroyed 175 | . 10 . . . 1 1 31 12 . 59 . . 61 Melee . | . . . . . . . . . . . . . . Projectile 45 | . . . . . 1 1 8 12 . 19 . . 4 AOE 130 | . 10 . . . . . 23 . . 40 . . 57 Terrain Rammed . | . . . . . . . . . . . . . . Walls Destroyed . | . . . . . . . . . . . . . . Machines Disabled . | . . . . . . . . . . . . . . Actions | -11 -10 -10 -10 -9 -8 -8 -8 -8 -8 -6 -5 -5 -5 --------- Run | Yrd Mat Min Exi Min Mat Sto Gar Rec Scr Fac Fac Upp Upp Total 7967 | 50 624 596 439 645 162 514 994 741 710 1040 294 498 660 Wait 1057 | . 111 322 . 274 . 32 12 22 10 50 1 220 3 Move 6008 | 38 421 272 438 356 124 348 798 536 692 854 261 273 597 Hop . | . . . . . . . . . . . . . . Pick Up 129 | 6 23 1 . 2 10 20 24 5 4 19 7 . 8 Fast Attach 45 | 6 3 . . 1 2 6 3 4 . 10 3 1 6 Attach 56 | . 1 . . 1 1 8 14 2 2 19 2 . 6 Detach 5 | . 1 . . . . . . 2 . 2 . . . Swap 22 | . 2 . . 1 1 5 4 2 . 5 . . 2 Drop 75 | . 10 1 1 2 10 18 13 4 2 4 3 . 7 Fire 389 | . 52 . . 8 14 77 92 26 . 77 12 4 27 Melee 1 | . . . . . . . . . . . . . 1 Ram . | . . . . . . . . . . . . . . Kick . | . . . . . . . . . . . . . . Crush . | . . . . . . . . . . . . . . Escape Stasis 7 | . . . . . . . 2 . . . 5 . . Rewire 173 | . . . . . . . 32 138 . . . . 3 Trap . | . . . . . . . . . . . . . . Miscellaneous . | . . . . . . . . . . . . . . Route ------- -11/Scrapyard -10/Materials (discovered 4 exits: [*Mat x3] / [*Min]) -10/Mines (discovered 3 exits: [*Mat] / *Exi / [*Sub]) -10/Exiles -9/Mines (discovered 2 exits: *Mat x2) -8/Materials -8/Storage -8/Garrison (discovered 3 exits: *Rec x3) -8/Recycling (discovered 2 exits: *Fac / *Scr) -8/Scraptown -6/Factory (discovered 2 exits: *Fac x2) -5/Factory -5/Upper Caves -5/Upper Caves (discovered 1 exit: *Fac) History --------- Turn | Location | Event 30 | -11/Scrapyard | Discovered new exit (range 16) 72 | -11/Scrapyard | Entered Materials 178 | -10/Materials | Discovered new exit (range 7) 218 | -10/Materials | Discovered new exit (range 14) 314 | -10/Materials | Build established: Mutant 317 | -10/Materials | Discovered new exit (range 14) 556 | -10/Materials | Discovered new exit (range 14) 872 | -10/Materials | Derelicts attacked the area 1004 | -10/Materials | Entered Mines 1339 | -10/Mines | Discovered new exit (range 5) 1438 | -10/Mines | Learned Materials stockpile data 1487 | -10/Mines | Found a damaged Exp. Sensor Array with a note attached 1491 | -10/Mines | Found Prototype Device 1576 | -10/Mines | Discovered new exit (range 15) 1742 | -10/Mines | Deemed a non-threat by the Exiles lab entrance 1743 | -10/Mines | Discovered new exit (range 5) 1750 | -10/Mines | Entered Exiles 1750 | -10/Exiles | Found Exiles lab abandoned 2384 | -10/Exiles | Discovered new exit (range 14) 2401 | -10/Exiles | Entered Mines 2572 | -9/Mines | Received a Rocket Launcher from a helpful Derelict 2780 | -9/Mines | A weapon hastily lodged in a ceiling crevice suddenly fell to the ground 3074 | -9/Mines | Discovered new exit (range 10) 3120 | -9/Mines | Discovered new exit (range 7) 3254 | -9/Mines | Entered Materials 3254 | -8/Materials | Evolved 4 slots: Propulsion x1, Utility x3 3255 | -8/Materials | Identified exit to Storage 3572 | -8/Materials | Entered Storage 4002 | -8/Storage | Learned location of Armory (-4) 4172 | -8/Storage | Garrison activated, responded to threat 4454 | -8/Storage | Identified exit to Garrison 4455 | -8/Storage | Entered Garrison 4487 | -8/Garrison | Discovered new exit (range 63) 4487 | -8/Garrison | Discovered new exit (range 40) 4487 | -8/Garrison | Discovered new exit (range 69) 4507 | -8/Garrison | Build established: Scavenger-Mutant 4529 | -8/Garrison | Triggered checkpoint 4693 | -8/Garrison | Garrison Relay disabled 4797 | -8/Garrison | Triggered checkpoint 4867 | -8/Garrison | Learned Recycling security intel 5039 | -8/Garrison | Spotted B-75 Beast 5064 | -8/Garrison | Core integrity fell below 50% 5070 | -8/Garrison | Destroyed B-75 Beast 5099 | -8/Garrison | Lost 9 parts (1p3n3u2w) 5304 | -8/Garrison | Identified exit to Recycling 5306 | -8/Garrison | Attempted to access garrison exit controls, blocked by remote lockdown 5356 | -8/Garrison | Build established: Mutant 5453 | -8/Garrison | Lost 3 parts (1p1u1w) 5655 | -8/Garrison | Triggered checkpoint 5758 | -8/Garrison | Attempted to access garrison exit controls, blocked by remote lockdown 5801 | -8/Garrison | Triggered checkpoint 5909 | -8/Garrison | Triggered checkpoint 5922 | -8/Garrison | Core integrity fell below 20% 5955 | -8/Garrison | Lost 3 parts (2n1w) 6151 | -8/Garrison | Entered Recycling 7023 | -8/Recycling | Build established: Commander-Mutant 7068 | -8/Recycling | Discovered new exit (range 16) 7091 | -8/Recycling | Identified exit to Factory 7263 | -8/Recycling | Scanned before Scraplab entrance 7288 | -8/Recycling | Entered Scraplab 7301 | -8/Recycling | Discovered new exit (range 3) 7302 | -8/Recycling | Identified exit to Scraptown 7317 | -8/Recycling | Entered Scraptown 7317 | -8/Scraptown | Accompanied by 7 allies 7317 | -8/Scraptown | System corruption cleaned by C-Scrubber 7754 | -8/Scraptown | Discovered exit to Factory (range 13) 7881 | -8/Scraptown | Visited Cave Peace 7897 | -8/Scraptown | Visited IN-MT5's Study 7955 | -8/Scraptown | Visited Assassins FH 7969 | -8/Scraptown | Visited Shadow of the Wyrm 7992 | -8/Scraptown | Visited TADAMA 8059 | -8/Scraptown | Visited Awakened 8118 | -8/Scraptown | Visited UFD Registry 8441 | -8/Scraptown | Entered Factory 8441 | -6/Factory | Accompanied by 7 allies 8441 | -6/Factory | Evolved 4 slots: Propulsion x1, Utility x2, Weapon x1 8832 | -6/Factory | Build established: Commander-Gunner 8962 | -6/Factory | Lost 7 allies 9053 | -6/Factory | Lost 14 parts (3p3n5u3w) 9101 | -6/Factory | Core integrity fell below 50% 9741 | -6/Factory | Lost 3 parts (1n2u) 9754 | -6/Factory | Build established: Skirmisher 9802 | -6/Factory | Core integrity fell below 20% 9880 | -6/Factory | Discovered new exit (range 16) 9904 | -6/Factory | Identified exit to Factory 10099 | -6/Factory | Discovered exit to Factory (range 11) 10105 | -6/Factory | Build established: Mutant 10383 | -6/Factory | Entered another Factory area 10383 | -5/Factory | Evolved 2 slots: Utility x2 10611 | -5/Factory | Build established: Scavenger-Mutant 10663 | -5/Factory | Identified Exp. Sensor Array 10686 | -5/Factory | Lost 4 parts (2n1u1w) 10875 | -5/Factory | Discovered new exit (range 16) 10902 | -5/Factory | Identified exit to Upper Caves 10907 | -5/Factory | Entered Upper Caves 10914 | -5/Upper Caves | Met a Warlord Commander 10915 | -5/Upper Caves | Learned location of Warlord (-5) 10916 | -5/Upper Caves | Warlord Commander delivered Encrypted Comm Array 10920 | -5/Upper Caves | Build established: Mutant 10921 | -5/Upper Caves | Found Encrypted Comm Array 11588 | -5/Upper Caves | Identified exit to Upper Caves 11636 | -5/Upper Caves | Learned Factory terminal intel 11660 | -5/Upper Caves | Entered another Upper Caves area 12033 | -5/Upper Caves | Discovered new exit (range 8) 12046 | -5/Upper Caves | Identified exit to Factory 12266 | -5/Upper Caves | Attracted the attention of an 0b10 outpost 12396 | -5/Upper Caves | Lost 6 parts (1p2n2u1w) 13271 | -5/Upper Caves | Attracted the attention of an 0b10 checkpoint 13283 | -5/Upper Caves | Core integrity fell below 50% 13297 | -5/Upper Caves | Core integrity fell below 20% 13306 | -5/Upper Caves | Released all parts (5) 13310 | -5/Upper Caves | Destroyed by Y-64 Sentinel with KE Penetrator Last Messages --------------- 13284_ Penetrated by Slug. 13287_ Dirty Datajack destroyed. 13287_ Slug penetrates Wall. 13289_ VTOL Module fries itself beyond repair. 13291_ Splicing S-27 Virus... Rewriting IFF filter. 13292_ S-27 Virus destroyed. 13300_ Destroyed VTOL Module. 13300_ S-27 Virus destroyed. 13304_ Missile Launcher destroyed. 13304_ Destroyed Missile Launcher. 13304_ Destroyed VTOL Module. 13306_ Imp. Proton Missile Launcher destroyed. 13306_ Penetrated by Slug. 13306_ Released Hcp. Storage Unit. 13306_ Released Imp. Signal Interpreter. 13306_ Released Core Analyzer. 13306_ Released Imp. Targeting Computer. 13306_ Released Dirty Datajack. 13310_ Penetrated by Slug. Map ----- +----------------------------------------------------+ | ?????????????????????????????????????????????????? | | ?????????????????????????????????????????????????? | | ?????????????????????????????????????????????????? | | ?????????????????????????????????????????????????? | | ?????????????????????????????????????????????????? | | ?????????????????????????????????????????????????? | | ?????????????????????????????????????????????????? | | ?????????????????????????????????????????????????? | | ?????????????????????????????????????????????????? | | ?????????????????????????????????????????????????? | | ???????????????????????###???????????????????????? | | ????????????????????? ???????????????????????? | | ????????????????????? ???????????????????????? | | ????????????????????? ??????# ??????????????? | | ?????????????? ???? ?????# ????????????? | | ??????????????? ???# ????# ????????????? | | ???????????????? #??# ##?# ????????????? | | ????????????????# #?# ## #???????? ????? | | ?????????????????# ## #??????? ????? | | ?????????????????# #??????? ##??? | | ??????????????????# #???????? ##?? | | ???????????????????# #????????? #?? | | ???????????????????# ??????????? #?? | | ????????????????????? ???????????### #?? | | ??????????????????????? #????????#### #??# | | ????????????????????????#@ #???????## # # # | | ????????????????????????# ##??????# % % | | ??????????????????###???# ##??#### | | ?????????????????## ???# #### | | ?????????????##### ?## ## | | ????????????? $ ## ##?? | | ?????????????? $ % ##s ## ### | | ???????????????##### ##!| #### ! ! | | ????????? ######[ Y!!!!! ##??# %! | | ?????????? =* % ! [%!*!## ##???# ! ## | | ???????????????##### % !!## #????# #? | | ???????????????????# % #### #????# ## | | ??????????????????# #??###????# # | | ??????????????????## ## ##?????????# " | | ???????????????????#### ?##???????????# # | | ??????????????????????##??????????????# ## | | ??????????????????????????????????????## ##? | | ???????????????????????????????????????# ##?? | | ???????????????????????????????????????## ##??? | | ????????????????????????????????????????## ##???# | | ???????????????????????????????????######" #???## | | ???????????????????????????????????# ##### | | ???????????????????????????????##### ##### ## | | ???????????????????????????????# ## #??## | | ???????????????????????????????# ## #### | +----------------------------------------------------+ Best States ------------- Heat Dissipation 59 Energy Generation 19 Energy Capacity 315 Matter Stores 412 Matter Capacity 450 Sight Range 16 Robot Scan Range 20 Terrain Scan Range 16 Terrain Scan Density 210 Armor Coverage 300 Propulsion Shielding 66 Evasion (%) 50 Targeting Accuracy 12 Target Analysis 7 Core Analysis 6 Recoil Reduction 4 Defensive Hacking 12 Item Schematics ----------------- None Robot Schematics ------------------ None Fabricated ------------ Nothing Alien Tech Used ----------------- None Achievements -------------- None Challenges ------------ None Game ------ Seed GatlingComponentPower Manual? 0 Play Time 01:05:33 Cumulative 104.1 hours Start 2024.11.09 @ 09:30:21 End 2024.11.09 @ 10:35:52 Sessions 1 Manual Loads 0 Difficulty Rogue Special Mode None Game No. 129 Rogue 129 Adventurer 0 Explorer 0 Win Type - Total 1 Types 1/0/0/0/0/0/0/0/0 Lore% 61 Gallery% 52 Achievement% 45 Wizard Run 0 Options --------- Layout 1 ASCII 0 Keyboard 1 Movement Numpad Keybinds 0 Fullscreen 1 Font 24/Smallcaps Map View 50x35 Zoom Use 0% Tactical HUD 1 Map Filters NONE Filters NONE Steam 1 RUN: 128331fb-a14e-4838-8175-3638cd7e4ab4